fUSD/lending_fUSD_20260407
["ID","MTS","AMOUNT","RATE_DAILY","PERIOD"]
[420002910,1775602274821,-500.0,0.00015999,2]
[420002911,1775602274835,-500.0,0.00015999,2]
[420002912,1775602274848,-150.0,0.00015999,2]
[420002913,1775602274861,-150.0,0.00015999,2]
[420002914,1775602274874,-176.66177212,0.00015999,2]
[420002915,1775602274887,-1676.0,0.00016,5]
[420002916,1775602274900,-294.43837119,0.00016,2]
[420002917,1775602274912,-150.0,0.00016,2]
[420002918,1775602274926,-245.0843554,0.00016,2]
[420002919,1775602274938,-152.61372689,0.00016,2]
[420002920,1775602274949,-151.22967101,0.00016,2]
[420002921,1775602274961,-259.71902729,0.00016,2]
[420002922,1775602275552,-150.00000001,0.00016,2]
[420002923,1775602275776,-151.75828689,0.00016,2]
[420002924,1775602275805,-1491741.26365025,0.00016,2]
[420002925,1775602275846,-34176.59021943,0.00016,2]
[420002926,1775602275872,-1154.89435467,0.00016,2]
[420002927,1775602275914,-151.0,0.00015122,2]
[420002928,1775602275925,-184.132287,0.00015122,2]
[420002929,1775602275935,-229.574227,0.00015167,2]
[420002930,1775602275945,-44436.99384058,0.00016,2]
[420002931,1775602275979,-151.0,0.00015159,2]
[420002932,1775602275990,-184.132287,0.00015159,2]
[420002933,1775602276001,-229.574227,0.00015168,2]
[420002934,1775602276011,-6018.91803203,0.00016,2]
[420002935,1775602276023,-888.61601314,0.00016,2]
[420002936,1775602276034,-2122.85360847,0.00016,2]
[420002937,1775602276046,-1016.49353724,0.00016,2]
[420002938,1775602276059,-500.0,0.00016,2]
[420002939,1775602276070,-64877.30116125,0.00016,2]
[420002940,1775602276084,-931.48943093,0.00016,2]
[420002941,1775602276105,-506.0,0.000131,2]
[420002942,1775602276114,-2216.93999999,0.00016,2]
[420002943,1775602276126,-4304.34282013,0.00016,2]
[420002944,1775602276147,-184.132287,0.00015167,2]
[420002945,1775602276158,-464.11,0.00015471,2]
[420002946,1775602276168,-1100.91204606,0.00016,2]
[420002947,1775602276186,-229.574227,0.00015122,2]
[420002948,1775602276196,-4570.0144775,0.00016,2]
[420002949,1775602276209,-477.34021707,0.00016,2]
[420002950,1775602276229,-151.0,0.00015167,2]
[420002951,1775602276239,-44105.89146375,0.00016,2]
[420002952,1775602276411,-229.574227,0.00015122,2]
[420002953,1775602276421,-151.0,0.00015122,2]
[420002954,1775602276431,-151.0,0.00015122,2]
[420002955,1775602276441,-229.574227,0.00015122,2]
[420002956,1775602276451,-229.574227,0.00015122,2]
[420002957,1775602276462,-229.574227,0.00015159,2]
[420002958,1775602276472,-151.0,0.00015159,2]
[420002959,1775602276483,-229.574227,0.00015167,2]
[420002960,1775602276492,-202.180808,0.00015167,2]
[420002961,1775602276502,-184.132281,0.00015168,2]
[420002962,1775602276512,-151.0,0.00015168,2]
[420002963,1775602276523,-229.574227,0.00015168,2]
[420002964,1775602276533,-10168.34753482,0.0001563,2]
[420002965,1775602276542,-434.92326322,0.00016,2]
[420002966,1775602276554,-500.0,0.00016,2]
[420002967,1775602276566,-9396.22595192,0.00016,2]
[420002968,1775602276577,-9843.01002192,0.00016,2]
[420002969,1775602276588,-10023.07459228,0.00016,2]
[420002970,1775602276758,-13001.48984061,0.00016,2]
[420002971,1775602276770,-6198.41011738,0.00016,2]
[420002972,1775602276782,-2928.4638173,0.00016,2]
[420002973,1775602276802,-229.574227,0.00015159,2]
[420002974,1775602276812,-1270.97917145,0.00016,2]
[420002975,1775602276824,-6937.51204526,0.00016,2]
[420002976,1775602276836,-5577.41348923,0.00016,2]
[420002977,1775602276848,-10169.62952678,0.00016,2]
[420002978,1775602276882,2007.28,0.0001209,2]
[420002979,1775602277050,5533.0,0.000104,5]
[420002980,1775602277084,2459.73,0.000102,3]
[420002981,1775602277109,3073.27,0.000102,3]
[420002982,1775602277681,300.0,0.00010399,2]
[420002983,1775602278019,300.0,0.00010399,2]
[420002984,1775602278066,274.0,0.00011434,2]
[420002985,1775602278108,3929.75293648,0.0001122,2]
[420002986,1775602278149,323.99814498,0.0001122,2]
[420002992,1775602510931,162.0,0.0001209,2]
[420003223,1775603284034,-378.85646175,0.000128,2]
[420003224,1775603284058,-491.75,0.000129,2]
[420003225,1775603284083,-500.0,0.000129,2]
[420003226,1775603284108,-500.0,0.000129,2]
[420003227,1775603284133,-129.39353825,0.00012998,2]
[420003229,1775603312455,4905.0,0.0001209,2]
[420003230,1775603415846,5095.01,0.000107,2]
[420003231,1775603415871,10000.01,0.000107,2]
[420003232,1775603415896,10000.01,0.000107,2]
[420003252,1775603431555,-482.5225775,0.000107,2]
[420003253,1775603431567,-516.37206645,0.000107,2]
[420003254,1775603431593,-362.36399931,0.000107,2]
[420003255,1775603431682,-644.40856757,0.000107,2]
[420003256,1775603431692,-1200.0,0.00012998,2]
[420003257,1775603431701,-300.0,0.00012998,2]
[420003258,1775603431711,-1200.0,0.00012998,2]
[420003259,1775603431721,-64691.17402393,0.00012999,2]
[420003260,1775603431730,-250.0,0.00013,2]
[420003261,1775603431740,-506.0,0.000131,2]
[420003262,1775603431750,-2000.0,0.00013453,2]
[420003263,1775603431760,-500.0,0.00013698,2]
[420003264,1775603431770,-500.0,0.00013698,2]
[420003265,1775603431781,-500.0,0.00013698,2]
[420003266,1775603431791,-500.0,0.00013698,2]
[420003267,1775603431801,-500.0,0.00013698,2]
[420003268,1775603431811,-500.0,0.00013698,2]
[420003269,1775603431821,-500.0,0.00013698,2]
[420003270,1775603431831,-500.0,0.00013698,2]
[420003271,1775603431844,-500.0,0.00013698,2]
[420003272,1775603431854,-502.12,0.00013698,2]
[420003273,1775603431870,-500.0,0.00013698,2]
[420003275,1775603431880,-500.0,0.00013698,2]
[420003277,1775603431891,-173.65,0.00013698,2]
[420003279,1775603431902,-2850.0,0.00013699,2]
[420003282,1775603431913,-150.0,0.00013699,2]
[420003284,1775603431925,-200.0,0.00013849,2]
[420003285,1775603431935,-717.21,0.00013871,2]
[420003286,1775603431945,-3240.0,0.00013871,2]
[420003287,1775603431956,-326.43042667,0.00013912,2]
[420003288,1775603431966,-500.0,0.00013912,2]
[420003290,1775603431977,-500.0,0.00013912,2]
[420003291,1775603431988,-500.0,0.00013912,2]
[420003292,1775603432000,-500.0,0.00013912,2]
[420003293,1775603432010,-500.0,0.00013913,2]
[420003294,1775603432020,-30121.80435046,0.00013915,2]
[420003295,1775603432034,-7721.34249988,0.00013915,2]
[420003296,1775603432047,-491.75,0.00013915,2]
[420003297,1775603432060,-4318.17622993,0.00013915,2]
[420003298,1775603432110,-500.0,0.00013912,2]
[420003299,1775603432120,-139.5230596,0.00013912,2]
[420003300,1775603432133,-360.4769404,0.00013912,2]
[420003301,1775603432143,-366.17353765,0.00013912,2]
[420003302,1775603432155,-133.82646235,0.00013912,2]
[420003303,1775603432165,-2098.87353765,0.00013915,2]
[420003304,1775603432179,-340.10023133,0.00013915,2]
[420003305,1775603432191,-1700.23783598,0.00013915,2]
[420003306,1775603432203,-498.60816711,0.00013915,2]
[420003307,1775603432218,-27549.55270037,0.00013915,2]
[420003308,1775603432298,-463.04172306,0.00013912,2]
[420003330,1775603439119,-36.95827694,0.00013912,2]
[420003331,1775603439129,-500.0,0.00013912,2]
[420003332,1775603439139,-500.0,0.00013912,2]
[420003333,1775603439149,-500.0,0.00013912,2]
[420003334,1775603439159,-500.0,0.00013912,2]
[420003335,1775603439170,-500.0,0.00013912,2]
[420003336,1775603439180,-500.0,0.00013912,2]
[420003337,1775603439189,-500.0,0.00013912,2]
[420003338,1775603439199,-500.0,0.00013912,2]
[420003339,1775603439209,-500.0,0.00013912,2]
[420003340,1775603439219,-500.0,0.00013912,2]
[420003341,1775603439231,-500.0,0.00013912,2]
[420003342,1775603439241,-500.0,0.00013912,2]
[420003343,1775603439251,-500.0,0.00013912,2]
[420003344,1775603439262,-373.65206131,0.00013912,2]
[420003346,1775603439340,-126.34793869,0.00013912,2]
[420003347,1775603439353,-500.0,0.00013912,2]
[420003348,1775603439363,-500.0,0.00013912,2]
[420003349,1775603439372,-500.0,0.00013912,2]
[420003350,1775603439382,-500.0,0.00013912,2]
[420003351,1775603439392,-500.0,0.00013912,2]
[420003352,1775603439401,-500.0,0.00013912,2]
[420003353,1775603439411,-500.0,0.00013912,2]
[420003354,1775603439420,-500.0,0.00013912,2]
[420003355,1775603439430,-500.0,0.00013912,2]
[420003356,1775603439440,-500.0,0.00013912,2]
[420003357,1775603439450,-500.0,0.00013912,2]
[420003358,1775603439460,-500.0,0.00013912,2]
[420003359,1775603439470,-500.0,0.00013912,2]
[420003360,1775603439480,-500.0,0.00013912,2]
[420003361,1775603439490,-500.0,0.00013912,2]
[420003362,1775603439499,-500.0,0.00013912,2]
[420003363,1775603439509,-29657.16444729,0.00013915,2]
[420003364,1775603439519,-3295.98,0.00013916,2]
[420003365,1775603439529,-1777.16,0.00013962,2]
[420003366,1775603439539,-150.0,0.00013973,2]
[420003367,1775603439548,-500.0,0.00013973,2]
[420003368,1775603439558,-500.0,0.00013973,2]
[420003369,1775603439568,-1161.2,0.00013996,2]
[420003370,1775603439577,-667.8617545,0.0001408,2]
[420003371,1775603439587,-250.0,0.0001408,2]
[420003372,1775603439599,-288.0,0.00014098,2]
[420003373,1775603439609,-156.3,0.00014115,2]
[420003374,1775603439619,-4673.87,0.00014115,2]
[420003375,1775603439628,-1676.72,0.00014115,2]
[420003376,1775603439638,-1359.69,0.00014115,2]
[420003377,1775603439647,-287.41137655,0.00014126,2]
[420003378,1775603439657,-250.0,0.00014273,2]
[420003379,1775603439666,-187.49,0.00014283,2]
[420003380,1775603439676,-2500.0,0.00014298,2]
[420003381,1775603439684,-2500.0,0.00014298,2]
[420003382,1775603439694,-2500.0,0.00014298,2]
[420003383,1775603439704,-300.0,0.00014298,2]
[420003384,1775603439714,-356.43990232,0.00014298,2]
[420003385,1775603439723,-1680.0,0.00014298,2]
[420003386,1775603439733,-300.0,0.00014299,2]
[420003387,1775603439742,-300.0,0.00014299,2]
[420003388,1775603439752,-300.0,0.00014299,2]
[420003389,1775603439763,-2500.0,0.00014299,2]
[420003390,1775603439773,-2500.0,0.00014299,2]
[420003391,1775603439783,-162.0,0.000144,2]
[420003392,1775603439793,-150.0,0.000144,2]
[420003393,1775603439804,-150.0,0.000144,2]
[420003394,1775603439814,-150.0,0.000144,2]
[420003395,1775603439824,-150.0,0.000144,2]
[420003397,1775603439834,-150.0,0.000144,2]
[420003399,1775603439844,-150.0,0.000144,2]
[420003401,1775603439855,-150.0,0.000144,2]
[420003402,1775603439865,-150.00000001,0.000144,2]
[420003403,1775603439876,-150.0,0.000144,2]
[420003404,1775603439886,-150.0,0.000144,2]
[420003405,1775603439896,-506.0,0.00014412,3]
[420003406,1775603439906,-150.0,0.00014473,2]
[420003407,1775603439915,-150.0,0.000145,2]
[420003408,1775603439925,-9999.99,0.00014504,2]
[420003409,1775603439934,-9999.99,0.00014504,2]
[420003411,1775603439943,-3209.4,0.00014504,2]
[420003412,1775603439953,-7452.86,0.00014504,2]
[420003413,1775603439964,-299.99,0.00014504,2]
[420003414,1775603439973,-150.99,0.00014504,2]
[420003415,1775603439982,-150.0,0.00014514,2]
[420003416,1775603439992,-1000.0,0.00014521,2]
[420003417,1775603440001,-150.0,0.00014545,2]
[420003418,1775603440011,-150.0,0.00014578,2]
[420003419,1775603440021,-150.0,0.000146,2]
[420003420,1775603440031,-1852.42,0.0001461,2]
[420003421,1775603440042,-150.0,0.00014618,2]
[420003422,1775603440052,-2804.0,0.00014621,2]
[420003423,1775603440062,-150.0,0.00014629,2]
[420003424,1775603440072,-150.0,0.00014691,2]
[420003425,1775603440082,-150.0,0.000147,2]
[420003426,1775603440092,-150.0,0.00014743,2]
[420003427,1775603440104,-150.0,0.00014756,2]
[420003428,1775603440114,-150.0,0.00014764,2]
[420003429,1775603440125,-150.0,0.000148,2]
[420003430,1775603440135,-1359.69,0.00014821,2]
[420003431,1775603440146,-150.0,0.00014836,2]
[420003432,1775603440156,-150.0,0.00014857,2]
[420003433,1775603440166,-150.0,0.000149,2]
[420003434,1775603440175,-218.65906202,0.00014909,2]
[420003435,1775603440185,-150.0,0.00014909,2]
[420003436,1775603440195,-150.0,0.00014933,2]
[420003437,1775603440205,-150.0,0.00014933,2]
[420003438,1775603440216,-150.0,0.00014933,2]
[420003439,1775603440226,-150.0,0.00014933,2]
[420003440,1775603440237,-150.0,0.00014933,2]
[420003441,1775603440247,-150.0,0.00014933,2]
[420003442,1775603440257,-150.0,0.00014967,2]
[420003443,1775603440267,-150.0,0.00014968,2]
[420003444,1775603440278,-150.0,0.00014971,2]
[420003445,1775603440288,-150.0,0.00014982,2]
[420003446,1775603440298,-150.0,0.00014993,2]
[420003447,1775603440308,-156.3,0.00014997,2]
[420003448,1775603440318,-788.41657,0.00015,2]
[420003449,1775603440328,-300.0,0.00015,2]
[420003450,1775603440339,-150.0,0.00015,2]
[420003451,1775603440350,-611.47521051,0.00015005,2]
[420003452,1775603440360,-1570.0,0.0001504,2]
[420003453,1775603440371,-150.0,0.00015055,2]
[420003454,1775603440381,-160.0,0.00015064,2]
[420003455,1775603440391,-796.914384,0.00015064,2]
[420003456,1775603440403,-361.50168,0.00015064,7]
[420003457,1775603440412,-1433.828768,0.00015064,2]
[420003458,1775603440422,-160.0,0.00015064,7]
[420003459,1775603440432,-654.329161,0.00015064,7]
[420003460,1775603440441,-1148.658323,0.00015064,7]
[420003461,1775603440452,-282.420433,0.00015064,7]
[420003462,1775603440461,-160.0,0.00015064,2]
[420003463,1775603440471,-305.467778,0.00015064,2]
[420003464,1775603440482,-450.935556,0.00015064,2]
[420003465,1775603440492,-407.928416,0.00015064,7]
[420003466,1775603440502,-160.0,0.00015064,2]
[420003467,1775603440512,-354.521954,0.00015064,2]
[420003468,1775603440522,-549.043909,0.00015064,2]
[420003469,1775603440533,-1500.0,0.00015068,2]
[420003470,1775603440543,-493.54914906,0.00015068,2]
[420003471,1775603440553,-150.0,0.00015086,2]
[420003472,1775603440563,-785.92,0.00015093,2]
[420003473,1775603440574,-150.0,0.000151,2]
[420003474,1775603440584,-150.0,0.000151,2]
[420003475,1775603440594,-500.0,0.00015106,2]
[420003476,1775603440606,-623.58710448,0.00015106,2]
[420003477,1775603440616,-200.0,0.00015106,2]
[420003478,1775603440626,-8260.13072239,0.00015106,2]
[420003479,1775603440637,-1235.18214925,0.00015106,2]
[420003480,1775603440648,-174.61919141,0.00015106,2]
[420003481,1775603440658,-743.50770149,0.00015106,2]
[420003482,1775603440669,-151.0,0.00015106,2]
[420003483,1775603440679,-599.60298507,0.00015106,2]
[420003484,1775603440689,-411.57624402,0.00015106,2]
[420003485,1775603440698,-150.0,0.00015111,2]
[420003486,1775603440708,-150.0,0.00015127,2]
[420003487,1775603440717,-611.4752105,0.00015134,2]
[420003488,1775603440726,-2000.0,0.00015134,2]
[420003489,1775603440736,-500.0,0.00015161,2]
[420003490,1775603440745,-4638.35391231,0.00015161,2]
[420003491,1775603440755,-151.0,0.00015161,2]
[420003492,1775603440765,-500.0,0.00015168,2]
[420003493,1775603440776,-500.0,0.00015168,2]
[420003494,1775603440785,-500.0,0.00015168,2]
[420003495,1775603440795,-369.59889346,0.00015168,2]
[420003496,1775603440805,-150.0,0.00015168,2]
[420003497,1775603440815,-812.5232,0.00015199,2]
[420003498,1775603440825,-150.0,0.000152,2]
[420003499,1775603440834,-150.0,0.000152,2]
[420003500,1775603440844,-150.0,0.000152,2]
[420003501,1775603440856,-500.0,0.00015216,2]
[420003502,1775603440865,-151.0,0.00015216,2]
[420003503,1775603440875,-611.4752105,0.00015263,2]
[420003504,1775603440885,-285.5847,0.00015272,2]
[420003505,1775603440895,-150.0,0.00015273,2]
[420003506,1775603440906,-2648.07972763,0.00015279,2]
[420003507,1775603440916,-150.0,0.00015289,2]
[420003508,1775603440926,-155.24660868,0.00015297,2]
[420003509,1775603440936,-14066.49108283,0.00015298,2]
[420003510,1775603440946,-150.0,0.000153,2]
[420003511,1775603440956,-1100.0,0.000153,5]
[420003512,1775603440966,-200.0,0.000153,5]
[420003513,1775603440977,-150.0,0.00015314,2]
[420003514,1775603440987,-764.97983754,0.0001533,2]
[420003515,1775603440997,-293.34699036,0.0001533,2]
[420003516,1775603441007,-378.03649083,0.0001533,2]
[420003517,1775603441017,-150.0,0.00015345,2]
[420003518,1775603441027,-2648.07972762,0.00015348,2]
[420003519,1775603441038,-162.0,0.0001536,2]
[420003520,1775603441048,-2812.0,0.0001536,2]
[420003521,1775603441058,-785.92,0.00015367,2]
[420003522,1775603441068,-151.0,0.00015368,2]
[420003523,1775603441079,-541.66,0.00015371,2]
[420003524,1775603441089,-500.0,0.00015371,2]
[420003525,1775603441102,-500.0,0.00015371,2]
[420003526,1775603441112,-657.46,0.00015371,2]
[420003527,1775603441122,-1184.11,0.00015371,2]
[420003528,1775603441132,-500.0,0.00015371,2]
[420003529,1775603441142,-541.99,0.00015371,2]
[420003530,1775603441153,-500.0,0.00015371,2]
[420003531,1775603441164,-500.0,0.00015371,2]
[420003532,1775603441174,-500.0,0.00015371,2]
[420003533,1775603441184,-71358.7521,0.00015372,2]
[420003534,1775603441194,-5848.41001934,0.00015379,2]
[420003535,1775603441205,-611.4752105,0.00015392,2]
[420003536,1775603441215,-150.0,0.000154,2]
[420003537,1775603441226,-2200.0,0.000154,5]
[420003538,1775603441236,-400.0,0.000154,5]
[420003539,1775603441247,-2648.07972762,0.00015417,2]
[420003540,1775603441257,-150.0,0.00015418,2]
[420003541,1775603441268,-150.0,0.00015429,2]
[420003542,1775603441278,-151.0,0.00015442,2]
[420003543,1775603441288,-411.61239383,0.00015449,2]
[420003544,1775603441298,-5848.41001934,0.00015453,2]
[420003546,1775603441309,-452.0,0.00015465,2]
[420003548,1775603441318,-150.0,0.00015467,2]
[420003549,1775603441328,-150.0,0.00015467,2]
[420003551,1775603441338,-150.0,0.00015467,2]
[420003553,1775603441349,-150.0,0.00015467,2]
[420003555,1775603441359,-150.0,0.00015467,2]
[420003558,1775603441369,-150.0,0.00015467,2]
[420003560,1775603441379,-5071.34,0.00015471,2]
[420003562,1775603441389,-13065.65,0.00015471,2]
[420003564,1775603441398,-1319.29,0.00015471,2]
[420003565,1775603441409,-2648.07972762,0.00015486,2]
[420003566,1775603441419,-150.0,0.00015491,2]
[420003567,1775603441429,-150.0,0.000155,2]
[420003568,1775603441440,-3300.0,0.000155,5]
[420003569,1775603441449,-600.0,0.000155,5]
[420003570,1775603441458,-4000.0,0.00015507,2]
[420003571,1775603441468,-625.22056428,0.00015515,2]
[420003572,1775603441478,-611.4752105,0.00015522,2]
[420003573,1775603441487,-1359.69,0.00015527,2]
[420003574,1775603441498,-5848.41001934,0.00015528,2]
[420003575,1775603441508,-150.0,0.00015543,2]
[420003576,1775603441519,-2648.07972762,0.00015555,2]
[420003577,1775603441529,-150.0,0.00015564,2]
[420003578,1775603441538,-420.19790691,0.00015579,2]
[420003579,1775603441548,-500.0,0.00015579,2]
[420003580,1775603441557,-922.15,0.00015579,2]
[420003581,1775603441927,-500.0,0.00015579,2]
[420003582,1775603441944,-500.0,0.00015579,2]
[420003583,1775603441954,-500.0,0.00015579,2]
[420003584,1775603441965,-1510.24,0.00015579,2]
[420003585,1775603441975,-150.0,0.000156,2]
[420003586,1775603441985,-4500.0,0.000156,5]
[420003587,1775603441995,-900.0,0.000156,5]
[420003588,1775603442006,-5848.41001934,0.00015602,2]
[420003589,1775603442016,-2351.68166264,0.00015606,2]
[420003590,1775603442026,-1000.0,0.00015616,2]
[420003591,1775603442036,-2648.07972762,0.00015624,2]
[420003592,1775603442045,-150.0,0.00015636,2]
[420003593,1775603442053,-152.09808365,0.0001564,2]
[420003594,1775603442063,-785.92,0.00015641,2]
[420003595,1775603442073,-150.0,0.00015644,2]
[420003596,1775603442083,-611.4752105,0.00015651,2]
[420003597,1775603442094,-200.0,0.00015654,2]
[420003598,1775603442107,-342.59459617,0.00015654,2]
[420003599,1775603442117,-150.0,0.00015657,2]
[420003600,1775603442127,-922.15,0.00015659,2]
[420003601,1775603442138,-500.0,0.00015659,2]
[420003602,1775603442147,-500.0,0.00015659,2]
[420003603,1775603442158,-500.0,0.00015659,2]
[420003604,1775603442168,-1510.24,0.00015659,2]
[420003605,1775603442179,-5848.41001934,0.00015677,2]
[420003606,1775603442190,-2812.0,0.0001568,2]
[420003607,1775603442200,-1573.0,0.0001568,2]
[420003608,1775603442210,-2648.07972762,0.00015693,2]
[420003609,1775603442220,-5000.0,0.00015695,2]
[420003610,1775603442230,-835.18426782,0.000157,2]
[420003611,1775603442240,-150.0,0.000157,2]
[420003612,1775603442250,-5600.0,0.000157,5]
[420003613,1775603442260,-1100.0,0.000157,5]
[420003615,1775603442270,-150.0,0.00015709,2]
[420003617,1775603442280,-922.15,0.00015712,2]
[420003619,1775603442290,-500.0,0.00015712,2]
[420003620,1775603442299,-500.0,0.00015712,2]
[420003621,1775603442309,-1510.24,0.00015712,2]
[420003622,1775603442319,-506.0,0.00015724,4]
[420003623,1775603442328,-2351.0,0.00015728,2]
[420003624,1775603442338,-1000.0,0.00015729,2]
[420003625,1775603442349,-6022.0,0.0001573,2]
[420003627,1775603442359,-3772.0,0.0001573,2]
[420003628,1775603442369,-1000.0,0.0001573,2]
[420003629,1775603442379,-452.0,0.00015734,2]
[420003630,1775603442390,-1000.0,0.00015742,2]
[420003631,1775603442400,-150.0,0.00015744,2]
[420003632,1775603442411,-547.05147769,0.00015751,2]
[420003633,1775603442453,-632.40478907,0.00015751,2]
[420003634,1775603442465,-540.53502026,0.00015751,2]
[420003636,1775603442486,-1906.31029911,0.00015751,2]
[420003638,1775603442497,-1318.76575467,0.00015751,2]
[420003653,1775603443675,-500.0,0.00015579,2]
[420003654,1775603443686,-500.0,0.00015659,2]
[420003655,1775603443697,-500.0,0.00015712,2]
[420003656,1775603443708,-243.82288555,0.00015751,2]
[420003657,1775603443764,-659.51979299,0.00015751,2]
[420003658,1775603443775,-662.3915392,0.00015753,2]
[420003659,1775603443785,-404.57163079,0.00015755,2]
[420003660,1775603443798,-47.42836921,0.00015755,2]
[420003661,1775603443808,-1000.0,0.00015756,2]
[420003662,1775603443818,-150.0,0.00015759,2]
[420003663,1775603443829,-157.4186019,0.00015759,2]
[420003664,1775603443839,-922.15,0.00015759,2]
[420003665,1775603443851,-922.15,0.00015759,2]
[420003666,1775603443862,-332.85302889,0.00015759,2]
[420003667,1775603444057,-589.29697111,0.00015759,2]
[420003668,1775603444068,-500.0,0.00015759,2]
[420003669,1775603444079,-500.0,0.00015759,2]
[420003670,1775603444090,-500.0,0.00015759,2]
[420003671,1775603444100,-4463.776,0.00015759,2]
[420003672,1775603444111,-229.97,0.00015759,2]
[420003673,1775603444122,-500.0,0.00015759,2]
[420003674,1775603444132,-500.0,0.00015759,2]
[420003675,1775603444142,-500.0,0.00015759,2]
[420003676,1775603444152,-1510.24,0.00015759,2]
[420003677,1775603444162,-1510.24,0.00015759,2]
[420003678,1775603444172,-1510.24,0.00015759,2]
[420003679,1775603444182,-500.0,0.00015759,2]
[420003680,1775603444192,-500.0,0.00015759,2]
[420003681,1775603444203,-500.0,0.00015759,2]
[420003682,1775603444213,-1000.0,0.00015761,2]
[420003683,1775603444224,-2648.07972762,0.00015762,2]
[420003684,1775603444235,-1000.0,0.0001577,2]
[420003685,1775603444247,-150.0,0.00015771,2]
[420003686,1775603444258,-1000.0,0.00015774,2]
[420003687,1775603444268,-150.0,0.00015775,2]
[420003688,1775603444278,-400.0,0.00015777,2]
[420003689,1775603444289,-611.4752105,0.0001578,2]
[420003690,1775603444300,-150.0,0.00015782,2]
[420003691,1775603444310,-150.0,0.00015783,2]
[420003692,1775603444320,-378.26322302,0.00015785,2]
[420003693,1775603444330,-1000.0,0.00015787,2]
[420003694,1775603444340,-150.0,0.00015789,2]
[420003695,1775603444350,-151.0,0.00015792,2]
[420003696,1775603444361,-500.0,0.00015794,2]
[420003697,1775603444371,-541.66,0.00015794,2]
[420003698,1775603444380,-541.66,0.00015794,2]
[420003699,1775603444390,-541.66,0.00015794,2]
[420003700,1775603444400,-541.66,0.00015794,2]
[420003701,1775603444410,-541.66,0.00015794,2]
[420003702,1775603444420,-541.66,0.00015794,2]
[420003703,1775603444430,-500.0,0.00015794,2]
[420003704,1775603444440,-500.0,0.00015794,2]
[420003705,1775603444451,-500.0,0.00015794,2]
[420003706,1775603444461,-500.0,0.00015794,2]
[420003707,1775603444472,-500.0,0.00015794,2]
[420003708,1775603444482,-500.0,0.00015794,2]
[420003709,1775603444492,-500.0,0.00015794,2]
[420003710,1775603444502,-500.0,0.00015794,2]
[420003711,1775603444511,-500.0,0.00015794,2]
[420003712,1775603444522,-500.0,0.00015794,2]
[420003713,1775603444531,-634.39130683,0.00015794,2]
[420003714,1775603444541,-657.46,0.00015794,2]
[420003715,1775603444551,-657.46,0.00015794,2]
[420003716,1775603444561,-657.46,0.00015794,2]
[420003717,1775603444570,-657.46,0.00015794,2]
[420003718,1775603444580,-657.46,0.00015794,2]
[420003719,1775603444589,-657.46,0.00015794,2]
[420003720,1775603444598,-1184.11,0.00015794,2]
[420003721,1775603444611,-1184.11,0.00015794,2]
[420003722,1775603444620,-1184.11,0.00015794,2]
[420003723,1775603444630,-1184.11,0.00015794,2]
[420003724,1775603444639,-1184.11,0.00015794,2]
[420003725,1775603444648,-1184.11,0.00015794,2]
[420003726,1775603444658,-500.0,0.00015794,2]
[420003727,1775603444667,-500.0,0.00015794,2]